[Event "Titled Tuesday Blitz June 6 Late 2023"]
[White "Kushko, Dmitriy"]
[Black "Buchenau, Frank"]
[WhiteFideId "14162261"]
[BlackFideId "4604350"]
[WhiteElo "2230"]
[BlackElo "2157"]
[Result "1-0"]
[Round "2"]
[TimeControl "180+2"]
[Date "2023.06.07"]
[WhiteClock "0:00:03"]
[BlackClock "0:00:02"]
[Board "109"]

1. Nf3 {[%clk 0:03:00]}  Nf6 {[%clk 0:02:59]} 2. g3 {[%clk 0:03:00]}  b6 {[%clk 0:02:59]} 3. Bg2 {[%clk 0:03:00]}  Bb7 {[%clk 0:03:00]} 4. O-O {[%clk 0:02:59]}  e6 {[%clk 0:03:00]} 5. c4 {[%clk 0:03:00]}  Be7 {[%clk 0:02:59]} 6. Nc3 {[%clk 0:03:00]}  O-O {[%clk 0:02:59]} 7. Re1 {[%clk 0:03:00]}  Ne4 {[%clk 0:02:58]} 8. Nxe4 {[%clk 0:03:00]}  Bxe4 {[%clk 0:02:59]} 9. d3 {[%clk 0:03:01]}  Bb7 {[%clk 0:02:59]} 10. e4 {[%clk 0:03:02]}  c5 {[%clk 0:02:59]} 11. d4 {[%clk 0:03:02]}  cxd4 {[%clk 0:02:59]} 12. Nxd4 {[%clk 0:03:03]}  Nc6 {[%clk 0:02:59]} 13. e5 {[%clk 0:03:01]}  a6 {[%clk 0:02:33]} 14. Nxc6 {[%clk 0:02:35]}  Bxc6 {[%clk 0:02:31]} 15. Bxc6 {[%clk 0:02:32]}  dxc6 {[%clk 0:02:31]} 16. Qf3 {[%clk 0:02:32]}  Qd4 {[%clk 0:02:14]} 17. Re4 {[%clk 0:02:15]}  Qd7 {[%clk 0:02:06]} 18. Be3 {[%clk 0:02:08]}  f5 {[%clk 0:01:58]} 19. exf6 {[%clk 0:02:06]}  Bxf6 {[%clk 0:01:58]} 20. Qe2 {[%clk 0:02:06]}  c5 {[%clk 0:01:39]} 21. Rd1 {[%clk 0:02:04]}  Qc6 {[%clk 0:01:37]} 22. f3 {[%clk 0:02:02]}  Rad8 {[%clk 0:01:36]} 23. b3 {[%clk 0:01:58]}  Rxd1+ {[%clk 0:01:35]} 24. Qxd1 {[%clk 0:01:59]}  Rd8 {[%clk 0:01:34]} 25. Qe2 {[%clk 0:02:00]}  Qd6 {[%clk 0:01:31]} 26. Bf2 {[%clk 0:01:57]}  Kf7 {[%clk 0:01:29]} 27. Kg2 {[%clk 0:01:56]}  h5 {[%clk 0:01:10]} 28. h4 {[%clk 0:01:32]}  g6 {[%clk 0:01:05]} 29. Re3 {[%clk 0:01:27]}  Bd4 {[%clk 0:00:58]} 30. Rd3 {[%clk 0:01:26]}  Qc6 {[%clk 0:00:46]} 31. Bxd4 {[%clk 0:01:23]}  cxd4 {[%clk 0:00:46]} 32. Rd1 {[%clk 0:01:00]}  b5 {[%clk 0:00:43]} 33. cxb5 {[%clk 0:00:55]}  axb5 {[%clk 0:00:43]} 34. Rd2 {[%clk 0:00:47]}  Qd5 {[%clk 0:00:33]} 35. Qd3 {[%clk 0:00:46]}  e5 {[%clk 0:00:32]} 36. Rc2 {[%clk 0:00:46]}  Rd7 {[%clk 0:00:27]} 37. b4 {[%clk 0:00:46]}  Ra7 {[%clk 0:00:21]} 38. a3 {[%clk 0:00:45]}  Rd7 {[%clk 0:00:19]} 39. Rc5 {[%clk 0:00:44]}  Qa2+ {[%clk 0:00:17]} 40. Kf1 {[%clk 0:00:30]}  Qa1+ {[%clk 0:00:17]} 41. Kg2 {[%clk 0:00:20]}  Qa2+ {[%clk 0:00:17]} 42. Rc2 {[%clk 0:00:20]}  Qb1 {[%clk 0:00:16]} 43. Kf2 {[%clk 0:00:09]}  Qh1 {[%clk 0:00:15]} 44. Re2 {[%clk 0:00:03]}  Qh2+ {[%clk 0:00:14]} 45. Kf1 {[%clk 0:00:03]}  Qxg3 {[%clk 0:00:15]} 46. Rc2 {[%clk 0:00:02]}  Qh3+ {[%clk 0:00:14]} 47. Kf2 {[%clk 0:00:01]}  Qxh4+ {[%clk 0:00:14]} 48. Kf1 {[%clk 0:00:01]}  Qh1+ {[%clk 0:00:13]} 49. Kf2 {[%clk 0:00:02]}  Qh2+ {[%clk 0:00:13]} 50. Kf1 {[%clk 0:00:02]}  Qf4 {[%clk 0:00:13]} 51. Kg2 {[%clk 0:00:02]}  g5 {[%clk 0:00:13]} 52. Rc6 {[%clk 0:00:02]}  Ke7 {[%clk 0:00:05]} 53. Qh7+ {[%clk 0:00:02]}  Kd8 {[%clk 0:00:05]} 54. Qg8+ {[%clk 0:00:02]}  Ke7 {[%clk 0:00:04]} 55. Qg7+ {[%clk 0:00:03]}  Kd8 {[%clk 0:00:03]} 56. Qg8+ {[%clk 0:00:03]}  Ke7 {[%clk 0:00:02]} 57. Re6# {[%clk 0:00:03]} 1-0


[Site "https://www.chess.com"]

[Event "Titled Tuesday Blitz June 6 Late 2023"]
[White "Horvath, Dominik"]
[Black "zsizsi99"]
[WhiteFideId "1642561"]
[WhiteElo "2407"]
[BlackElo "2416"]
[Result "1-0"]
[Round "2"]
[TimeControl "180+2"]
[Date "2023.06.07"]
[WhiteClock "0:01:09"]
[BlackClock "0:00:16"]
[Board "110"]

1. e4 {[%clk 0:03:00]}  c5 {[%clk 0:02:53]} 2. Nf3 {[%clk 0:03:01]}  d6 {[%clk 0:02:51]} 3. d4 {[%clk 0:03:01]}  cxd4 {[%clk 0:02:52]} 4. Nxd4 {[%clk 0:03:01]}  Nf6 {[%clk 0:02:52]} 5. Nc3 {[%clk 0:03:02]}  a6 {[%clk 0:02:51]} 6. Bg5 {[%clk 0:03:02]}  Nbd7 {[%clk 0:02:51]} 7. Qe2 {[%clk 0:03:02]}  Qc7 {[%clk 0:02:47]} 8. O-O-O {[%clk 0:03:01]}  b5 {[%clk 0:02:41]} 9. Nd5 {[%clk 0:03:00]}  Nxd5 {[%clk 0:02:39]} 10. exd5 {[%clk 0:03:01]}  Bb7 {[%clk 0:02:39]} 11. Nf5 {[%clk 0:02:59]}  Ne5 {[%clk 0:02:13]} 12. f4 {[%clk 0:02:48]}  Bc8 {[%clk 0:02:10]} 13. fxe5 {[%clk 0:02:05]}  Bxf5 {[%clk 0:02:08]} 14. exd6 {[%clk 0:02:05]}  Qxd6 {[%clk 0:02:08]} 15. Qf2 {[%clk 0:02:05]}  Qg6 {[%clk 0:01:45]} 16. Bf4 {[%clk 0:01:55]}  Rc8 {[%clk 0:01:45]} 17. c3 {[%clk 0:01:55]}  Be4 {[%clk 0:01:28]} 18. Qa7 {[%clk 0:01:50]}  Qf6 {[%clk 0:01:15]} 19. Be3 {[%clk 0:01:41]}  Qd6 {[%clk 0:01:08]} 20. a4 {[%clk 0:01:29]}  g6 {[%clk 0:00:56]} 21. Qd4 {[%clk 0:01:26]}  Rg8 {[%clk 0:00:42]} 22. Qxe4 {[%clk 0:01:25]}  Bg7 {[%clk 0:00:37]} 23. axb5 {[%clk 0:01:19]}  f5 {[%clk 0:00:30]} 24. Qe6 {[%clk 0:01:18]}  Rxc3+ {[%clk 0:00:26]} 25. bxc3 {[%clk 0:01:15]}  Qa3+ {[%clk 0:00:27]} 26. Kd2 {[%clk 0:01:15]}  Qxc3+ {[%clk 0:00:27]} 27. Ke2 {[%clk 0:01:16]}  Rf8 {[%clk 0:00:23]} 28. bxa6 {[%clk 0:01:15]}  f4 {[%clk 0:00:23]} 29. a7 {[%clk 0:01:12]}  Qc4+ {[%clk 0:00:18]} 30. Rd3 {[%clk 0:01:09]}  Qa2+ {[%clk 0:00:17]} 31. Rd2 {[%clk 0:01:10]}  Qa6+ {[%clk 0:00:16]} 32. Qxa6 {[%clk 0:01:09]} 1-0


[Site "https://www.chess.com"]

[Event "Titled Tuesday Blitz June 6 Late 2023"]
[White "Pesotskiy, Mikhail"]
[Black "Daggupati, Balaji"]
[WhiteFideId "34164453"]
[BlackFideId "2090759"]
[WhiteElo "2131"]
[BlackElo "2713"]
[Result "0-1"]
[Round "2"]
[TimeControl "180+2"]
[Date "2023.06.07"]
[WhiteClock "0:01:25"]
[BlackClock "0:02:35"]
[Board "111"]

1. d4 {[%clk 0:02:59]}  d5 {[%clk 0:03:00]} 2. c4 {[%clk 0:02:59]}  dxc4 {[%clk 0:03:01]} 3. e3 {[%clk 0:02:59]}  e6 {[%clk 0:03:01]} 4. Bxc4 {[%clk 0:02:59]}  Nf6 {[%clk 0:03:02]} 5. Nf3 {[%clk 0:03:00]}  Be7 {[%clk 0:03:03]} 6. O-O {[%clk 0:03:00]}  a6 {[%clk 0:03:04]} 7. a4 {[%clk 0:03:00]}  O-O {[%clk 0:03:02]} 8. Nc3 {[%clk 0:03:00]}  c5 {[%clk 0:03:03]} 9. Qe2 {[%clk 0:02:59]}  Nc6 {[%clk 0:03:03]} 10. Rd1 {[%clk 0:02:59]}  cxd4 {[%clk 0:03:03]} 11. exd4 {[%clk 0:02:58]}  Nb4 {[%clk 0:03:00]} 12. Bg5 {[%clk 0:02:56]}  h6 {[%clk 0:02:59]} 13. Bh4 {[%clk 0:02:56]}  b6 {[%clk 0:02:59]} 14. Re1 {[%clk 0:02:24]}  Bb7 {[%clk 0:02:58]} 15. Rad1 {[%clk 0:02:24]}  Nbd5 {[%clk 0:02:50]} 16. Ne5 {[%clk 0:02:24]}  Nf4 {[%clk 0:02:40]} 17. Qc2 {[%clk 0:01:26]}  Nxg2 {[%clk 0:02:40]} 18. Nxf7 {[%clk 0:01:27]}  Rxf7 {[%clk 0:02:35]} 19. Bxe6 {[%clk 0:01:27]}  Nxh4 {[%clk 0:02:35]} 20. Bxf7+ {[%clk 0:01:25]}  Kxf7 {[%clk 0:02:36]} 21. Qb3+ {[%clk 0:01:25]}  Kf8 {[%clk 0:02:35]} 0-1


[Site "https://www.chess.com"]

[Event "Titled Tuesday Blitz June 6 Late 2023"]
[White "Do Valle Cardoso, Lucas"]
[Black "Martin Barcelo, Carles"]
[WhiteFideId "2163144"]
[BlackFideId "24561444"]
[WhiteElo "2364"]
[BlackElo "2089"]
[Result "1-0"]
[Round "2"]
[TimeControl "180+2"]
[Date "2023.06.07"]
[WhiteClock "0:01:18"]
[BlackClock "0:00:06"]
[Board "112"]

1. e4 {[%clk 0:03:00]}  g6 {[%clk 0:02:53]} 2. d4 {[%clk 0:03:00]}  Bg7 {[%clk 0:02:53]} 3. Nc3 {[%clk 0:03:01]}  d6 {[%clk 0:02:53]} 4. Be3 {[%clk 0:03:00]}  Nc6 {[%clk 0:02:51]} 5. Qd2 {[%clk 0:02:59]}  e5 {[%clk 0:02:51]} 6. Nge2 {[%clk 0:02:58]}  exd4 {[%clk 0:02:48]} 7. Nxd4 {[%clk 0:02:59]}  Nf6 {[%clk 0:02:47]} 8. f3 {[%clk 0:03:00]}  O-O {[%clk 0:02:47]} 9. O-O-O {[%clk 0:03:00]}  Nxd4 {[%clk 0:02:40]} 10. Bxd4 {[%clk 0:03:01]}  Be6 {[%clk 0:02:40]} 11. Kb1 {[%clk 0:03:00]}  Re8 {[%clk 0:02:28]} 12. h4 {[%clk 0:02:49]}  c5 {[%clk 0:02:28]} 13. Be3 {[%clk 0:02:47]}  d5 {[%clk 0:02:28]} 14. exd5 {[%clk 0:01:54]}  Nxd5 {[%clk 0:02:23]} 15. Nxd5 {[%clk 0:01:52]}  Qxd5 {[%clk 0:02:22]} 16. Qxd5 {[%clk 0:01:51]}  Bxd5 {[%clk 0:02:23]} 17. Bxc5 {[%clk 0:01:50]}  Rac8 {[%clk 0:02:16]} 18. Bb5 {[%clk 0:01:47]}  Red8 {[%clk 0:01:52]} 19. Be7 {[%clk 0:01:39]}  Re8 {[%clk 0:00:18]} 20. Bxe8 {[%clk 0:01:36]}  Rxe8 {[%clk 0:00:19]} 21. Rxd5 {[%clk 0:01:35]}  Rxe7 {[%clk 0:00:19]} 22. Rd8+ {[%clk 0:01:35]}  Bf8 {[%clk 0:00:18]} 23. a4 {[%clk 0:01:34]}  b6 {[%clk 0:00:13]} 24. h5 {[%clk 0:01:31]}  gxh5 {[%clk 0:00:11]} 25. Rxh5 {[%clk 0:01:30]}  Kg7 {[%clk 0:00:06]} 26. Rhd5 {[%clk 0:01:18]} 1-0


[Site "https://www.chess.com"]

[Event "Titled Tuesday Blitz June 6 Late 2023"]
[White "Gokerkan, Cem Kaan"]
[Black "Abduzhaparov"]
[WhiteFideId "6336760"]
[WhiteElo "2365"]
[BlackElo "2406"]
[Result "1-0"]
[Round "2"]
[TimeControl "180+2"]
[Date "2023.06.07"]
[WhiteClock "0:01:01"]
[BlackClock "0:01:31"]
[Board "113"]

1. a3 {[%clk 0:03:00]}  d6 {[%clk 0:02:56]} 2. c4 {[%clk 0:03:01]}  g6 {[%clk 0:02:55]} 3. Nf3 {[%clk 0:03:00]}  Bg7 {[%clk 0:02:56]} 4. Nc3 {[%clk 0:03:00]}  Nc6 {[%clk 0:02:55]} 5. h3 {[%clk 0:02:59]}  e5 {[%clk 0:02:55]} 6. d3 {[%clk 0:02:58]}  f5 {[%clk 0:02:55]} 7. Bg5 {[%clk 0:02:56]}  Nf6 {[%clk 0:02:53]} 8. e3 {[%clk 0:02:54]}  h6 {[%clk 0:02:53]} 9. Bxf6 {[%clk 0:02:55]}  Bxf6 {[%clk 0:02:54]} 10. Be2 {[%clk 0:02:55]}  Bg7 {[%clk 0:02:54]} 11. O-O {[%clk 0:02:55]}  O-O {[%clk 0:02:54]} 12. Qc2 {[%clk 0:02:45]}  g5 {[%clk 0:02:53]} 13. Nd2 {[%clk 0:02:40]}  f4 {[%clk 0:02:50]} 14. b4 {[%clk 0:02:25]}  g4 {[%clk 0:02:43]} 15. Bxg4 {[%clk 0:02:22]}  Bxg4 {[%clk 0:02:42]} 16. hxg4 {[%clk 0:02:22]}  fxe3 {[%clk 0:02:38]} 17. fxe3 {[%clk 0:02:22]}  Qh4 {[%clk 0:02:38]} 18. Qd1 {[%clk 0:02:15]}  e4 {[%clk 0:02:36]} 19. Ndxe4 {[%clk 0:01:50]}  Rxf1+ {[%clk 0:02:12]} 20. Qxf1 {[%clk 0:01:51]}  Be5 {[%clk 0:02:12]} 21. g3 {[%clk 0:01:37]}  Bxg3 {[%clk 0:02:12]} 22. Qg2 {[%clk 0:01:20]}  Be5 {[%clk 0:02:12]} 23. Rf1 {[%clk 0:01:20]}  Rf8 {[%clk 0:02:07]} 24. Rxf8+ {[%clk 0:01:18]}  Kxf8 {[%clk 0:02:08]} 25. d4 {[%clk 0:01:17]}  Qe1+ {[%clk 0:01:54]} 26. Qf1+ {[%clk 0:01:17]}  Qxf1+ {[%clk 0:01:49]} 27. Kxf1 {[%clk 0:01:18]}  Bg7 {[%clk 0:01:37]} 28. Nd5 {[%clk 0:01:14]}  a5 {[%clk 0:01:35]} 29. b5 {[%clk 0:01:12]}  Nxd4 {[%clk 0:01:35]} 30. exd4 {[%clk 0:01:11]}  c6 {[%clk 0:01:36]} 31. bxc6 {[%clk 0:01:11]}  bxc6 {[%clk 0:01:37]} 32. Nf4 {[%clk 0:01:11]}  d5 {[%clk 0:01:33]} 33. cxd5 {[%clk 0:01:10]}  cxd5 {[%clk 0:01:33]} 34. Ne6+ {[%clk 0:01:04]}  Kf7 {[%clk 0:01:31]} 35. Nxg7 {[%clk 0:01:05]}  dxe4 {[%clk 0:01:31]} 36. Nf5 {[%clk 0:01:04]}  Kg6 {[%clk 0:01:30]} 37. d5 {[%clk 0:01:02]}  h5 {[%clk 0:01:31]} 38. d6 {[%clk 0:01:01]} 1-0


[Site "https://www.chess.com"]

[Event "Titled Tuesday Blitz June 6 Late 2023"]
[White "Saveliev, Alexei"]
[Black "Amanov, Zhanibek"]
[WhiteFideId "24128546"]
[BlackFideId "13700189"]
[WhiteElo "2271"]
[BlackElo "2134"]
[Result "0-1"]
[Round "2"]
[TimeControl "180+2"]
[Date "2023.06.07"]
[WhiteClock "0:00:50"]
[BlackClock "0:00:24"]
[Board "117"]

1. c4 {[%clk 0:03:00]}  c6 {[%clk 0:02:59]} 2. Nc3 {[%clk 0:03:01]}  d5 {[%clk 0:03:00]} 3. cxd5 {[%clk 0:03:02]}  cxd5 {[%clk 0:03:01]} 4. d4 {[%clk 0:03:02]}  Nf6 {[%clk 0:03:01]} 5. Nf3 {[%clk 0:03:03]}  Nc6 {[%clk 0:03:02]} 6. Bg5 {[%clk 0:03:03]}  e6 {[%clk 0:03:02]} 7. e3 {[%clk 0:03:03]}  Be7 {[%clk 0:03:02]} 8. Bd3 {[%clk 0:03:04]}  O-O {[%clk 0:03:01]} 9. O-O {[%clk 0:03:04]}  b6 {[%clk 0:03:02]} 10. Rc1 {[%clk 0:03:05]}  Bb7 {[%clk 0:03:02]} 11. Bb1 {[%clk 0:03:00]}  h6 {[%clk 0:03:02]} 12. Bh4 {[%clk 0:02:57]}  Na5 {[%clk 0:03:00]} 13. Qd3 {[%clk 0:02:53]}  Ne4 {[%clk 0:02:59]} 14. Bxe7 {[%clk 0:02:51]}  Qxe7 {[%clk 0:02:59]} 15. Ne5 {[%clk 0:02:49]}  Rfc8 {[%clk 0:02:37]} 16. f3 {[%clk 0:02:48]}  Nf6 {[%clk 0:02:36]} 17. Ng4 {[%clk 0:02:34]}  Nc4 {[%clk 0:02:34]} 18. b3 {[%clk 0:02:30]}  Nd6 {[%clk 0:02:29]} 19. Nxf6+ {[%clk 0:02:29]}  Qxf6 {[%clk 0:02:29]} 20. Qh7+ {[%clk 0:02:28]}  Kf8 {[%clk 0:02:30]} 21. Ne2 {[%clk 0:02:25]}  Nf5 {[%clk 0:02:17]} 22. Bxf5 {[%clk 0:02:19]}  exf5 {[%clk 0:02:18]} 23. Nf4 {[%clk 0:02:14]}  Ke7 {[%clk 0:02:14]} 24. Rxc8 {[%clk 0:02:02]}  Rxc8 {[%clk 0:02:15]} 25. h4 {[%clk 0:01:56]}  g5 {[%clk 0:01:52]} 26. hxg5 {[%clk 0:01:42]}  hxg5 {[%clk 0:01:51]} 27. Nh5 {[%clk 0:01:42]}  Qg6 {[%clk 0:01:32]} 28. Qxg6 {[%clk 0:01:41]}  fxg6 {[%clk 0:01:32]} 29. Ng3 {[%clk 0:01:42]}  Ba6 {[%clk 0:01:20]} 30. Rf2 {[%clk 0:01:38]}  Rc3 {[%clk 0:01:18]} 31. e4 {[%clk 0:01:35]}  dxe4 {[%clk 0:01:09]} 32. fxe4 {[%clk 0:01:30]}  Rxg3 {[%clk 0:01:10]} 33. exf5 {[%clk 0:01:30]}  gxf5 {[%clk 0:00:58]} 34. Rxf5 {[%clk 0:01:31]}  Bb7 {[%clk 0:00:53]} 35. d5 {[%clk 0:01:31]}  Kd6 {[%clk 0:00:53]} 36. Kh2 {[%clk 0:01:29]}  Rg4 {[%clk 0:00:52]} 37. Kh3 {[%clk 0:01:24]}  Rd4 {[%clk 0:00:29]} 38. Rxg5 {[%clk 0:01:23]}  Bxd5 {[%clk 0:00:29]} 39. Rg7 {[%clk 0:01:23]}  a5 {[%clk 0:00:27]} 40. g4 {[%clk 0:01:17]}  Rd2 {[%clk 0:00:26]} 41. a3 {[%clk 0:01:10]}  Rd3+ {[%clk 0:00:26]} 42. Kh4 {[%clk 0:01:10]}  Rxb3 {[%clk 0:00:27]} 43. g5 {[%clk 0:01:08]}  Rxa3 {[%clk 0:00:26]} 44. Ra7 {[%clk 0:01:08]}  Be6 {[%clk 0:00:24]} 45. g6 {[%clk 0:01:08]}  Rh3+ {[%clk 0:00:23]} 46. Kg5 {[%clk 0:01:08]}  Rh1 {[%clk 0:00:23]} 47. Kf6 {[%clk 0:01:05]}  Rf1+ {[%clk 0:00:23]} 48. Kg5 {[%clk 0:01:03]}  Bd7 {[%clk 0:00:22]} 49. Kh6 {[%clk 0:01:01]}  Rh1+ {[%clk 0:00:16]} 50. Kg5 {[%clk 0:01:01]}  a4 {[%clk 0:00:16]} 51. g7 {[%clk 0:01:00]}  Rg1+ {[%clk 0:00:16]} 52. Kf6 {[%clk 0:01:01]}  b5 {[%clk 0:00:17]} 53. Kf7 {[%clk 0:00:56]}  Be6+ {[%clk 0:00:16]} 54. Kf6 {[%clk 0:00:56]}  Bc4 {[%clk 0:00:16]} 55. Ra8 {[%clk 0:00:49]}  Kc5 {[%clk 0:00:16]} 56. Ra7 {[%clk 0:00:44]}  Kb4 {[%clk 0:00:16]} 57. Ke5 {[%clk 0:00:45]}  a3 {[%clk 0:00:16]} 58. Kd4 {[%clk 0:00:45]}  a2 {[%clk 0:00:17]} 59. Ke3 {[%clk 0:00:46]}  a1=Q {[%clk 0:00:16]} 60. Rxa1 {[%clk 0:00:45]}  Rxa1 {[%clk 0:00:17]} 61. Kf2 {[%clk 0:00:44]}  Bg8 {[%clk 0:00:18]} 62. Ke2 {[%clk 0:00:44]}  Ra6 {[%clk 0:00:18]} 63. Kd2 {[%clk 0:00:44]}  Rc6 {[%clk 0:00:19]} 64. Kd3 {[%clk 0:00:44]}  Ka5 {[%clk 0:00:20]} 65. Ke4 {[%clk 0:00:45]}  Kb6 {[%clk 0:00:21]} 66. Kd4 {[%clk 0:00:46]}  b4 {[%clk 0:00:22]} 67. Ke5 {[%clk 0:00:47]}  b3 {[%clk 0:00:22]} 68. Kd4 {[%clk 0:00:48]}  b2 {[%clk 0:00:23]} 69. Ke5 {[%clk 0:00:47]}  b1=Q {[%clk 0:00:23]} 70. Kd4 {[%clk 0:00:48]}  Qb4+ {[%clk 0:00:23]} 71. Ke3 {[%clk 0:00:49]}  Rc3+ {[%clk 0:00:23]} 72. Kd2 {[%clk 0:00:50]}  Qb2+ {[%clk 0:00:24]} 0-1


[Site "https://www.chess.com"]

[Event "Titled Tuesday Blitz June 6 Late 2023"]
[White "Domingo Nunez, Ruben"]
[Black "Mikhalsky, Vladimir"]
[WhiteFideId "22245570"]
[BlackFideId "14144352"]
[WhiteElo "2404"]
[BlackElo "2236"]
[Result "1-0"]
[Round "2"]
[TimeControl "180+2"]
[Date "2023.06.07"]
[WhiteClock "0:00:09"]
[BlackClock "0:00:09"]
[Board "120"]

1. b3 {[%clk 0:03:00]}  e5 {[%clk 0:02:58]} 2. Bb2 {[%clk 0:03:00]}  Nc6 {[%clk 0:02:58]} 3. e3 {[%clk 0:03:01]}  Nf6 {[%clk 0:02:56]} 4. Bb5 {[%clk 0:03:01]}  d6 {[%clk 0:02:53]} 5. d4 {[%clk 0:03:01]}  exd4 {[%clk 0:02:49]} 6. Qxd4 {[%clk 0:03:01]}  Bd7 {[%clk 0:02:45]} 7. Bxc6 {[%clk 0:02:58]}  Bxc6 {[%clk 0:02:44]} 8. Nf3 {[%clk 0:02:59]}  Qd7 {[%clk 0:02:21]} 9. Nc3 {[%clk 0:02:58]}  a6 {[%clk 0:02:18]} 10. O-O-O {[%clk 0:02:58]}  O-O-O {[%clk 0:02:13]} 11. Qa7 {[%clk 0:02:58]}  Qf5 {[%clk 0:02:00]} 12. Nd4 {[%clk 0:02:10]}  Qxf2 {[%clk 0:01:59]} 13. Nxc6 {[%clk 0:02:01]}  bxc6 {[%clk 0:01:58]} 14. Na4 {[%clk 0:01:57]}  Re8 {[%clk 0:01:08]} 15. Qxa6+ {[%clk 0:00:44]}  Kb8 {[%clk 0:01:08]} 16. Qxc6 {[%clk 0:00:39]}  Qxe3+ {[%clk 0:01:07]} 17. Kb1 {[%clk 0:00:39]}  Qe4 {[%clk 0:01:00]} 18. Qb5+ {[%clk 0:00:36]}  Qb7 {[%clk 0:00:59]} 19. Qc4 {[%clk 0:00:35]}  d5 {[%clk 0:00:57]} 20. Qd3 {[%clk 0:00:33]}  Ne4 {[%clk 0:00:42]} 21. Rhf1 {[%clk 0:00:34]}  f6 {[%clk 0:00:27]} 22. Qxd5 {[%clk 0:00:22]}  Qxd5 {[%clk 0:00:27]} 23. Rxd5 {[%clk 0:00:23]}  Bd6 {[%clk 0:00:28]} 24. g3 {[%clk 0:00:22]}  Ng5 {[%clk 0:00:21]} 25. Rb5+ {[%clk 0:00:21]}  Kc8 {[%clk 0:00:20]} 26. Rd1 {[%clk 0:00:18]}  Re2 {[%clk 0:00:19]} 27. Bc1 {[%clk 0:00:17]}  Nf3 {[%clk 0:00:18]} 28. Nb6+ {[%clk 0:00:17]}  Kd8 {[%clk 0:00:15]} 29. Nc4 {[%clk 0:00:16]}  Kd7 {[%clk 0:00:15]} 30. Ba3 {[%clk 0:00:13]}  Kc6 {[%clk 0:00:14]} 31. Nxd6 {[%clk 0:00:09]}  cxd6 {[%clk 0:00:13]} 32. Rxd6+ {[%clk 0:00:07]}  Kxb5 {[%clk 0:00:11]} 33. c4+ {[%clk 0:00:07]}  Ka5 {[%clk 0:00:09]} 34. b4+ {[%clk 0:00:08]}  Ka4 {[%clk 0:00:09]} 35. Ra6# {[%clk 0:00:09]} 1-0


[Site "https://www.chess.com"]

[Event "Titled Tuesday Blitz June 6 Late 2023"]
[White "Ai, Evan"]
[Black "Domingo Nunez, Alejandro"]
[WhiteFideId "2094770"]
[BlackFideId "22245561"]
[WhiteElo "1963"]
[BlackElo "2291"]
[Result "0-1"]
[Round "2"]
[TimeControl "180+2"]
[Date "2023.06.07"]
[WhiteClock "0:00:05"]
[BlackClock "0:00:33"]
[Board "121"]

1. e4 {[%clk 0:03:00]}  g6 {[%clk 0:02:58]} 2. d4 {[%clk 0:03:00]}  Bg7 {[%clk 0:02:59]} 3. Nc3 {[%clk 0:03:00]}  c6 {[%clk 0:03:00]} 4. Be3 {[%clk 0:03:00]}  d5 {[%clk 0:03:00]} 5. f3 {[%clk 0:03:00]}  dxe4 {[%clk 0:03:00]} 6. fxe4 {[%clk 0:03:01]}  e5 {[%clk 0:03:01]} 7. d5 {[%clk 0:03:01]}  Nf6 {[%clk 0:03:00]} 8. Nf3 {[%clk 0:02:59]}  O-O {[%clk 0:03:00]} 9. Bc4 {[%clk 0:02:56]}  b5 {[%clk 0:02:57]} 10. Bb3 {[%clk 0:02:37]}  b4 {[%clk 0:02:56]} 11. Na4 {[%clk 0:02:37]}  Nxe4 {[%clk 0:02:56]} 12. dxc6 {[%clk 0:02:37]}  Qc7 {[%clk 0:02:39]} 13. Bd5 {[%clk 0:02:24]}  Nf6 {[%clk 0:02:37]} 14. c4 {[%clk 0:02:11]}  Nxc6 {[%clk 0:02:15]} 15. Bc5 {[%clk 0:02:01]}  Re8 {[%clk 0:02:14]} 16. Ng5 {[%clk 0:01:52]}  Nxd5 {[%clk 0:02:07]} 17. cxd5 {[%clk 0:01:41]}  Nd4 {[%clk 0:02:03]} 18. O-O {[%clk 0:01:36]}  Bf5 {[%clk 0:01:55]} 19. Rc1 {[%clk 0:00:50]}  Qd7 {[%clk 0:01:48]} 20. d6 {[%clk 0:00:37]}  Rac8 {[%clk 0:01:27]} 21. Rc4 {[%clk 0:00:20]}  h6 {[%clk 0:00:49]} 22. Nf3 {[%clk 0:00:17]}  Bg4 {[%clk 0:00:50]} 23. Rxb4 {[%clk 0:00:13]}  Bxf3 {[%clk 0:00:36]} 24. gxf3 {[%clk 0:00:14]}  Qf5 {[%clk 0:00:36]} 25. Bxd4 {[%clk 0:00:11]}  exd4 {[%clk 0:00:37]} 26. Rb7 {[%clk 0:00:05]}  Rc2 {[%clk 0:00:34]} 27. Kh1 {[%clk 0:00:05]}  Ree2 {[%clk 0:00:33]} 0-1


[Site "https://www.chess.com"]

[Event "Titled Tuesday Blitz June 6 Late 2023"]
[White "Chabris, Christopher"]
[Black "Di Berardino, Diego Rafael"]
[WhiteFideId "2005263"]
[BlackFideId "2105446"]
[WhiteElo "2380"]
[BlackElo "2426"]
[Result "1-0"]
[Round "2"]
[TimeControl "180+2"]
[Date "2023.06.07"]
[WhiteClock "0:00:15"]
[BlackClock "0:00:03"]
[Board "122"]

1. e4 {[%clk 0:03:00]}  Nf6 {[%clk 0:03:00]} 2. e5 {[%clk 0:03:00]}  Nd5 {[%clk 0:03:00]} 3. d4 {[%clk 0:03:00]}  d6 {[%clk 0:03:01]} 4. Nf3 {[%clk 0:03:00]}  dxe5 {[%clk 0:02:59]} 5. Nxe5 {[%clk 0:03:00]}  c6 {[%clk 0:02:59]} 6. Bc4 {[%clk 0:02:56]}  Bf5 {[%clk 0:02:55]} 7. c3 {[%clk 0:02:50]}  e6 {[%clk 0:02:54]} 8. O-O {[%clk 0:02:49]}  Nd7 {[%clk 0:02:53]} 9. Nf3 {[%clk 0:02:48]}  Be7 {[%clk 0:02:48]} 10. Re1 {[%clk 0:02:47]}  O-O {[%clk 0:02:48]} 11. Nbd2 {[%clk 0:02:43]}  N5b6 {[%clk 0:02:38]} 12. Bb3 {[%clk 0:02:33]}  c5 {[%clk 0:02:38]} 13. a4 {[%clk 0:02:28]}  Bg6 {[%clk 0:01:54]} 14. a5 {[%clk 0:02:25]}  Nc8 {[%clk 0:01:52]} 15. a6 {[%clk 0:02:17]}  b6 {[%clk 0:01:50]} 16. d5 {[%clk 0:02:17]}  exd5 {[%clk 0:01:38]} 17. Bxd5 {[%clk 0:02:16]}  Rb8 {[%clk 0:01:38]} 18. Nc4 {[%clk 0:02:16]}  Nd6 {[%clk 0:00:57]} 19. Bf4 {[%clk 0:01:52]}  Nxc4 {[%clk 0:00:55]} 20. Bxb8 {[%clk 0:01:36]}  Nxb2 {[%clk 0:00:43]} 21. Qe2 {[%clk 0:01:24]}  Qxb8 {[%clk 0:00:40]} 22. Qxe7 {[%clk 0:01:20]}  Nf6 {[%clk 0:00:40]} 23. c4 {[%clk 0:01:14]}  Nd3 {[%clk 0:00:31]} 24. Re3 {[%clk 0:01:07]}  Nb4 {[%clk 0:00:28]} 25. Rd1 {[%clk 0:00:53]}  Nxa6 {[%clk 0:00:23]} 26. Ne5 {[%clk 0:00:49]}  Nb4 {[%clk 0:00:22]} 27. Bxf7+ {[%clk 0:00:37]}  Bxf7 {[%clk 0:00:19]} 28. Nxf7 {[%clk 0:00:37]}  Qf4 {[%clk 0:00:13]} 29. Rd8 {[%clk 0:00:31]}  Nd7 {[%clk 0:00:06]} 30. Rxd7 {[%clk 0:00:21]}  Nc6 {[%clk 0:00:05]} 31. Qe6 {[%clk 0:00:17]}  Nd4 {[%clk 0:00:03]} 32. Rxd4 {[%clk 0:00:15]} 1-0


[Site "https://www.chess.com"]